fUSD/lending_fUSD_20260616
["ID","MTS","AMOUNT","RATE_DAILY","PERIOD"]
[425173383,1781553056000,-369.649788,0.00014995,2]
[425173379,1781553056000,-500.0,0.00014994,2]
[425173372,1781553056000,-8811.70085349,0.000149,2]
[425173380,1781553056000,-232.60018499,0.00014994,2]
[425173400,1781553073000,-4600.6648305,0.00011099,2]
[425173401,1781553091000,-500.0,9.076e-05,2]
[425173402,1781553143000,-500.0,9.075e-05,2]
[425173403,1781553144000,84611.42436607,8.977e-05,2]
[425173406,1781553145000,453.5940213,3.06e-05,2]
[425173404,1781553145000,453.5940213,2.94e-05,2]
[425173405,1781553145000,453.5940213,3e-05,2]
[425173407,1781553196000,-999.54855,8.977e-05,2]
[425173408,1781553216000,-999.54855,8.976e-05,2]
[425173409,1781553263000,191.96825606,0.0001194,120]
[425173410,1781553285000,308.03174394,0.0003013,120]
[425173411,1781553400000,-300.0,8.794e-05,2]
[425173412,1781553453000,-150.0,8.793e-05,2]
[425173413,1781553506000,-276.46919473,8.794e-05,2]
[425173414,1781553560000,-500.0,8.793e-05,2]
[425173415,1781553613000,-1994.3,8.793e-05,2]
[425173416,1781553632000,-150.0,8.792e-05,2]
[425173417,1781553685000,-500.0,8.792e-05,2]
[425173418,1781553739000,-162.52227535,8.792e-05,2]
[425173420,1781553792000,-579.27599158,8.792e-05,2]
[425173421,1781553846000,-315.70891182,8.792e-05,2]
[425173422,1781553962000,-1112.26,8.526e-05,2]
[425173424,1781553962000,-200.0,8.655e-05,2]
[425173423,1781553962000,-150.0,8.59e-05,2]
[425173426,1781553963000,-184.31279648,8.792e-05,2]
[425173425,1781553963000,-5453.90782303,8.655e-05,2]
[425173427,1781553963000,-999.54855,8.792e-05,2]
[425173429,1781553963000,-500.0,8.792e-05,2]
[425173431,1781553963000,-539.12930647,8.792e-05,2]
[425173433,1781553963000,-289.34654516,8.792e-05,2]
[425173428,1781553963000,-250.0,8.792e-05,2]
[425173432,1781553963000,-500.0,8.792e-05,2]
[425173435,1781553963000,-160.0,8.794e-05,2]
[425173436,1781553963000,-2000.0,8.802e-05,2]
[425173434,1781553963000,-494.57778841,8.793e-05,2]
[425173437,1781553963000,-150.0,8.875e-05,2]
[425173438,1781553963000,-2920.7593,8.876e-05,2]
[425173439,1781553963000,-5596.15789045,8.876e-05,2]
[425173430,1781553963000,-500.0,8.792e-05,2]
[425173440,1781554030000,-500.0,8.791e-05,2]
[425173448,1781554042000,-500.0,8.791e-05,2]
[425173447,1781554042000,-500.0,8.791e-05,2]
[425173446,1781554042000,-500.0,8.791e-05,2]
[425173445,1781554042000,-181.41041773,8.791e-05,2]
[425173441,1781554042000,-154.187554,8.791e-05,2]
[425173444,1781554042000,-402.54258162,8.791e-05,2]
[425173443,1781554042000,-227.39051453,8.791e-05,2]
[425173449,1781554042000,-500.0,8.791e-05,2]
[425173442,1781554042000,-500.0,8.791e-05,2]
[425173450,1781554042000,-500.0,8.791e-05,2]
[425173455,1781554042000,-500.0,8.791e-05,2]
[425173452,1781554042000,-500.0,8.791e-05,2]
[425173451,1781554042000,-500.0,8.791e-05,2]
[425173462,1781554042000,-500.0,8.791e-05,2]
[425173461,1781554042000,-500.0,8.791e-05,2]
[425173459,1781554042000,-500.0,8.791e-05,2]
[425173458,1781554042000,-500.0,8.791e-05,2]
[425173460,1781554042000,-500.0,8.791e-05,2]
[425173456,1781554042000,-500.0,8.791e-05,2]
[425173454,1781554042000,-500.0,8.791e-05,2]
[425173453,1781554042000,-500.0,8.791e-05,2]
[425173457,1781554042000,-500.0,8.791e-05,2]
[425173471,1781554043000,-500.0,8.791e-05,2]
[425173477,1781554043000,-500.0,8.791e-05,2]
[425173475,1781554043000,-500.0,8.791e-05,2]
[425173474,1781554043000,-500.0,8.791e-05,2]
[425173472,1781554043000,-500.0,8.791e-05,2]
[425173473,1781554043000,-500.0,8.791e-05,2]
[425173470,1781554043000,-500.0,8.791e-05,2]
[425173466,1781554043000,-500.0,8.791e-05,2]
[425173469,1781554043000,-500.0,8.791e-05,2]
[425173467,1781554043000,-500.0,8.791e-05,2]
[425173465,1781554043000,-500.0,8.791e-05,2]
[425173464,1781554043000,-500.0,8.791e-05,2]
[425173463,1781554043000,-500.0,8.791e-05,2]
[425173476,1781554043000,-500.0,8.791e-05,2]
[425173468,1781554043000,-500.0,8.791e-05,2]
[425173478,1781554043000,-500.0,8.791e-05,2]
[425173495,1781554043000,-500.0,8.791e-05,2]
[425173480,1781554043000,-500.0,8.791e-05,2]
[425173496,1781554043000,-500.0,8.791e-05,2]
[425173479,1781554043000,-500.0,8.791e-05,2]
[425173493,1781554043000,-500.0,8.791e-05,2]
[425173492,1781554043000,-500.0,8.791e-05,2]
[425173491,1781554043000,-500.0,8.791e-05,2]
[425173490,1781554043000,-500.0,8.791e-05,2]
[425173488,1781554043000,-500.0,8.791e-05,2]
[425173494,1781554043000,-500.0,8.791e-05,2]
[425173487,1781554043000,-500.0,8.791e-05,2]
[425173486,1781554043000,-561.44601301,8.791e-05,2]
[425173485,1781554043000,-500.0,8.791e-05,2]
[425173483,1781554043000,-500.0,8.791e-05,2]
[425173484,1781554043000,-500.0,8.791e-05,2]
[425173482,1781554043000,-500.0,8.791e-05,2]
[425173481,1781554043000,-500.0,8.791e-05,2]
[425173489,1781554043000,-500.0,8.791e-05,2]
[425173508,1781554044000,-181.77980713,8.791e-05,2]
[425173507,1781554044000,-500.0,8.791e-05,2]
[425173506,1781554044000,-500.0,8.791e-05,2]
[425173505,1781554044000,-500.0,8.791e-05,2]
[425173504,1781554044000,-500.0,8.791e-05,2]
[425173503,1781554044000,-500.0,8.791e-05,2]
[425173499,1781554044000,-500.0,8.791e-05,2]
[425173501,1781554044000,-500.0,8.791e-05,2]
[425173500,1781554044000,-350.0,8.791e-05,2]
[425173498,1781554044000,-500.0,8.791e-05,2]
[425173497,1781554044000,-500.0,8.791e-05,2]
[425173509,1781554044000,-500.0,8.791e-05,2]
[425173502,1781554044000,-500.0,8.791e-05,2]
[425173510,1781554044000,-500.0,8.791e-05,2]
[425173521,1781554044000,-184.31279647,8.885e-05,2]
[425173512,1781554044000,-300.0,8.791e-05,2]
[425173524,1781554044000,-162.08,8.972e-05,2]
[425173523,1781554044000,-150.0,8.967e-05,2]
[425173525,1781554044000,-2615.81,8.975e-05,2]
[425173522,1781554044000,-194.44,8.937e-05,2]
[425173520,1781554044000,-150.0,8.879e-05,2]
[425173519,1781554044000,-2692.68900525,8.876e-05,2]
[425173511,1781554044000,-500.0,8.791e-05,2]
[425173517,1781554044000,-6824.0566,8.876e-05,2]
[425173516,1781554044000,-250.0,8.876e-05,2]
[425173515,1781554044000,-2500.0,8.876e-05,2]
[425173514,1781554044000,-3888.40000955,8.876e-05,2]
[425173513,1781554044000,-1124.90849724,8.875e-05,2]
[425173518,1781554044000,-500.0,8.876e-05,2]
[425173527,1781554045000,-876.30555547,8.975e-05,2]
[425173526,1781554045000,-288.464,8.975e-05,2]
[425173529,1781554045000,500.0,8.791e-05,2]
[425173528,1781554045000,500.0,8.791e-05,2]
[425173530,1781554058000,-55205.776648,8.976e-05,2]
[425173531,1781554083000,-8317.32839512,8.976e-05,2]
[425173532,1781554100000,-1175.06,8.876e-05,2]
[425173533,1781554121000,-500.0,8.791e-05,2]
[425173534,1781554126000,-500.0,8.79e-05,2]
[425173536,1781554126000,-500.0,8.79e-05,2]
[425173535,1781554126000,-500.0,8.79e-05,2]
[425173537,1781554126000,-500.0,8.79e-05,2]
[425173539,1781554126000,-320.23759876,8.79e-05,2]
[425173540,1781554126000,-73.16239984,8.79e-05,2]
[425173538,1781554126000,-224.36313339,8.79e-05,2]
[425173542,1781554127000,-836.50560615,8.876e-05,2]
[425173541,1781554127000,-184.31279647,8.791e-05,2]
[425173543,1781554132000,229.71,0.0003,120]
[425173544,1781554150000,-500.0,8.79e-05,2]
[425173545,1781554150000,-500.0,8.79e-05,2]
[425173546,1781554150000,-500.0,8.79e-05,2]
[425173548,1781554150000,-500.0,8.79e-05,2]
[425173549,1781554150000,-117.37236285,8.79e-05,2]
[425173547,1781554150000,-500.0,8.79e-05,2]
[425173555,1781554151000,-115.82509444,8.79e-05,2]
[425173553,1781554151000,-325.42944559,8.79e-05,2]
[425173554,1781554151000,-500.0,8.79e-05,2]
[425173552,1781554151000,-174.57055441,8.79e-05,2]
[425173551,1781554151000,-500.0,8.79e-05,2]
[425173550,1781554151000,-382.62763715,8.79e-05,2]
[425173556,1781554174000,-384.17490556,8.79e-05,2]
[425173559,1781554175000,-500.0,8.79e-05,2]
[425173558,1781554175000,-500.0,8.79e-05,2]
[425173557,1781554175000,-500.0,8.79e-05,2]
[425173560,1781554176000,-500.0,8.79e-05,2]
[425173562,1781554176000,-190.86377393,8.79e-05,2]
[425173561,1781554176000,-500.0,8.79e-05,2]
[425173565,1781554176000,-263.97549904,8.79e-05,2]
[425173564,1781554176000,-500.0,8.79e-05,2]
[425173563,1781554176000,-180.28082737,8.79e-05,2]
[425173568,1781554202000,-863.44196405,8.876e-05,2]
[425173566,1781554202000,-150.0,8.875e-05,2]
[425173567,1781554202000,-2613.56617594,8.876e-05,2]
[425173569,1781554227000,-1543.14,8.876e-05,2]
[425173650,1781554245000,-1613.0535,8.876e-05,2]
[425173651,1781554246000,-822.21968653,8.876e-05,2]
[425173654,1781554246000,-3229.88370083,8.876e-05,2]
[425173652,1781554246000,-12135.95426429,8.876e-05,2]
[425173653,1781554246000,-9262.90087722,8.876e-05,2]
[425173657,1781554247000,-2500.0,8.876e-05,2]
[425173655,1781554247000,-365.78468318,8.876e-05,2]
[425173658,1781554247000,-956215.28920617,8.876e-05,2]
[425173656,1781554247000,-64942.01984181,8.876e-05,2]
[425173659,1781554247000,-9607.168507,8.876e-05,2]
[425173660,1781554247000,-60257.41270491,8.876e-05,2]
[425173662,1781554247000,-1104.52829031,8.876e-05,2]
[425173663,1781554247000,-341.61107492,8.876e-05,2]
[425173666,1781554247000,-538.715813,8.876e-05,2]
[425173667,1781554247000,-4745.99700206,8.876e-05,2]
[425173661,1781554247000,-390.37,8.876e-05,2]
[425173664,1781554247000,-997.17529699,8.876e-05,2]
[425173665,1781554247000,-279.48818024,8.876e-05,2]
[425173668,1781554247000,-633.26702445,8.876e-05,2]
[425173670,1781554248000,-327.66026881,8.876e-05,2]
[425173669,1781554248000,-1499.00125038,8.876e-05,2]
[425173672,1781554248000,-340.4335,8.876e-05,2]
[425173673,1781554248000,-3642.1690535,8.876e-05,2]
[425173671,1781554248000,-359.72663377,8.876e-05,2]
[425173678,1781554249000,-4733.85969591,8.876e-05,2]
[425173676,1781554249000,-25004.54093043,8.876e-05,2]
[425173675,1781554249000,-651.00066705,8.876e-05,2]
[425173674,1781554249000,-6655.12486937,8.876e-05,2]
[425173677,1781554249000,-174147.50549897,8.876e-05,2]
[425173693,1781554266000,-1613.0535,8.876e-05,2]
[425173694,1781554284000,-169.91674799,8.832e-05,2]
[425173695,1781554337000,-1006.19246753,8.876e-05,2]
[425173698,1781554521000,-265.699074,8.654e-05,2]
[425173699,1781554575000,-993.80753247,8.698e-05,2]
[425173700,1781554596000,-1098.84046753,8.698e-05,2]
[425173701,1781554646000,-230.771,8.698e-05,2]
[425173702,1781554700000,-722.01490158,8.394e-05,2]
[425173703,1781554720000,-722.01490158,8.394e-05,2]
[425173704,1781554738000,-555.97019684,8.394e-05,2]
[425173705,1781554790000,-150.0,8.477e-05,2]
[425173706,1781554843000,-250.0,8.48e-05,2]
[425173707,1781554896000,-471.96,8.483e-05,2]
[425173718,1781554975000,-500.0,8.771e-05,2]
[425173715,1781554975000,-500.0,8.771e-05,2]
[425173716,1781554975000,-500.0,8.771e-05,2]
[425173714,1781554975000,-500.0,8.771e-05,2]
[425173708,1781554975000,-150.0,8.53e-05,2]
[425173712,1781554975000,-349.17121032,8.771e-05,2]
[425173711,1781554975000,-277.17763496,8.771e-05,2]
[425173710,1781554975000,-250.0,8.578e-05,2]
[425173709,1781554975000,-825.00061453,8.578e-05,2]
[425173713,1781554975000,-224.58643148,8.771e-05,2]
[425173717,1781554975000,-500.0,8.771e-05,2]
[425173721,1781554975000,-325.81392764,8.771e-05,2]
[425173720,1781554975000,-500.0,8.771e-05,2]
[425173722,1781554975000,-150.0,8.774e-05,2]
[425173724,1781554975000,-509.17336017,8.775e-05,2]
[425173723,1781554975000,-580.12168242,8.775e-05,2]
[425173725,1781554975000,-150.0,8.775e-05,2]
[425173726,1781554975000,-150.0,8.775e-05,2]
[425173727,1781554975000,-150.0,8.775e-05,2]
[425173728,1781554975000,-150.0,8.775e-05,2]
[425173729,1781554975000,-33290.518,8.776e-05,2]
[425173730,1781554975000,-59143.43713848,8.776e-05,2]
[425173719,1781554975000,-500.0,8.771e-05,2]
[425173731,1781554988000,500.0,7.945e-05,2]
[425173732,1781554988000,166.66,7.945e-05,2]
[425173736,1781554988000,187.84744593,7.945e-05,2]
[425173733,1781554988000,157.47,7.945e-05,2]
[425173734,1781554988000,268.82459729,7.945e-05,2]
[425173738,1781554988000,384.47525705,7.945e-05,2]
[425173737,1781554988000,368.15490033,7.945e-05,2]
[425173739,1781554988000,153.0,7.945e-05,2]
[425173741,1781554988000,88.50708372,7.945e-05,2]
[425173740,1781554988000,269.41287568,7.945e-05,2]
[425173735,1781554988000,175.87,7.945e-05,2]
[425173742,1781554990000,150.0,8.275e-05,2]
[425173743,1781555074000,39.23239028,8.254e-05,2]
[425173744,1781555074000,169.36118349,8.254e-05,2]
[425173745,1781555074000,500.0,8.254e-05,2]
[425173746,1781555074000,282.99003528,8.254e-05,2]
[425173748,1781555074000,196.49503224,8.254e-05,2]
[425173749,1781555074000,672.88183578,8.254e-05,2]
[425173747,1781555074000,205.9995153,8.254e-05,2]
[425173751,1781555165000,-300.0,8.253e-05,2]
[425173753,1781555218000,-305.52995345,8.254e-05,2]
[425173754,1781555272000,-150.0,8.253e-05,2]
[425173755,1781555296000,275.86,7.91e-05,2]
[425173756,1781555300000,1408.0,7.922e-05,2]
[425173757,1781555326000,-7787.97,8.148e-05,2]
[425173758,1781555341000,-257.36628799,8.147e-05,2]
[425173760,1781555341000,-513.45563755,8.147e-05,2]
[425173759,1781555341000,-513.45563755,8.147e-05,2]
[425173767,1781555342000,-179.61161112,8.147e-05,2]
[425173766,1781555342000,-513.45563755,8.147e-05,2]
[425173765,1781555342000,-513.45563755,8.147e-05,2]
[425173764,1781555342000,-360.47751878,8.147e-05,2]
[425173763,1781555342000,-152.97811877,8.147e-05,2]
[425173761,1781555342000,-513.45563755,8.147e-05,2]
[425173762,1781555342000,-513.45563755,8.147e-05,2]
[425173770,1781555349000,-513.45563755,8.147e-05,2]
[425173769,1781555349000,-513.45563755,8.147e-05,2]
[425173772,1781555349000,-513.45563755,8.147e-05,2]
[425173768,1781555349000,-333.84402643,8.147e-05,2]
[425173774,1781555349000,-513.45563755,8.147e-05,2]
[425173773,1781555349000,-513.45563755,8.147e-05,2]
[425173775,1781555349000,-513.45563755,8.147e-05,2]
[425173776,1781555349000,-344.03288272,8.147e-05,2]
[425173771,1781555349000,-513.45563755,8.147e-05,2]
[425173777,1781555359000,151.86,7.844e-05,2]
[425173779,1781555379000,-513.45563755,8.147e-05,2]
[425173778,1781555379000,-169.42275483,8.147e-05,2]
[425173782,1781555379000,-513.45563755,8.147e-05,2]
[425173781,1781555379000,-513.45563755,8.147e-05,2]
[425173780,1781555379000,-513.45563755,8.147e-05,2]
[425173787,1781555380000,-241.79937785,8.147e-05,2]
[425173786,1781555380000,-513.45563755,8.147e-05,2]
[425173785,1781555380000,-513.45563755,8.147e-05,2]
[425173784,1781555380000,-22.48788356,8.147e-05,2]
[425173783,1781555380000,-490.96775399,8.147e-05,2]
[425173791,1781555394000,-195.53280732,8.147e-05,2]
[425173789,1781555394000,-513.45563755,8.147e-05,2]
[425173788,1781555394000,-271.6562597,8.147e-05,2]
[425173790,1781555394000,-317.92283023,8.147e-05,2]
[425173796,1781555394000,-372.15472349,8.147e-05,2]
[425173795,1781555394000,-513.45563755,8.147e-05,2]
[425173794,1781555394000,-513.45563755,8.147e-05,2]
[425173793,1781555394000,-513.45563755,8.147e-05,2]
[425173792,1781555394000,-513.45563755,8.147e-05,2]
[425173797,1781555432000,-300.0,8.146e-05,2]
[425173819,1781555435000,-513.45563755,8.147e-05,2]
[425173816,1781555435000,-513.45563755,8.147e-05,2]
[425173818,1781555435000,-513.45563755,8.147e-05,2]
[425173823,1781555435000,-500.0,8.147e-05,2]
[425173821,1781555435000,-500.0,8.147e-05,2]
[425173824,1781555435000,-500.0,8.147e-05,2]
[425173822,1781555435000,-500.0,8.147e-05,2]
[425173825,1781555435000,-500.0,8.147e-05,2]
[425173826,1781555435000,-500.0,8.147e-05,2]
[425173828,1781555435000,-500.0,8.147e-05,2]
[425173830,1781555435000,-295.68444459,8.147e-05,2]
[425173831,1781555435000,-500.0,8.147e-05,2]
[425173832,1781555435000,-500.0,8.147e-05,2]
[425173836,1781555435000,-500.0,8.147e-05,2]
[425173817,1781555435000,-513.45563755,8.147e-05,2]
[425173827,1781555435000,-500.0,8.147e-05,2]
[425173815,1781555435000,-513.45563755,8.147e-05,2]
[425173833,1781555435000,-500.0,8.147e-05,2]
[425173820,1781555435000,-513.45563755,8.147e-05,2]
[425173799,1781555435000,-141.30091406,8.147e-05,2]
[425173798,1781555435000,-150.0,8.146e-05,2]
[425173800,1781555435000,-513.45563755,8.147e-05,2]
[425173802,1781555435000,-513.45563755,8.147e-05,2]
[425173803,1781555435000,-513.45563755,8.147e-05,2]
[425173805,1781555435000,-513.45563755,8.147e-05,2]
[425173801,1781555435000,-513.45563755,8.147e-05,2]
[425173814,1781555435000,-513.45563755,8.147e-05,2]
[425173804,1781555435000,-513.45563755,8.147e-05,2]
[425173807,1781555435000,-513.45563755,8.147e-05,2]
[425173806,1781555435000,-513.45563755,8.147e-05,2]
[425173810,1781555435000,-513.45563755,8.147e-05,2]
[425173812,1781555435000,-513.45563755,8.147e-05,2]
[425173813,1781555435000,-513.45563755,8.147e-05,2]
[425173811,1781555435000,-513.45563755,8.147e-05,2]
[425173809,1781555435000,-513.45563755,8.147e-05,2]
[425173808,1781555435000,-513.45563755,8.147e-05,2]
[425173838,1781555435000,-500.0,8.147e-05,2]
[425173829,1781555435000,-204.31555541,8.147e-05,2]
[425173834,1781555435000,-500.0,8.147e-05,2]
[425173858,1781555435000,-500.0,8.147e-05,2]
[425173857,1781555435000,-500.0,8.147e-05,2]
[425173861,1781555435000,-2000.0,8.219e-05,2]
[425173859,1781555435000,-250.0,8.201e-05,2]
[425173860,1781555435000,-500.0,8.219e-05,2]
[425173862,1781555435000,-500.0,8.249e-05,2]
[425173863,1781555435000,-150.0,8.254e-05,2]
[425173856,1781555435000,-500.0,8.147e-05,2]
[425173871,1781555435000,-3464.88824557,8.676e-05,2]
[425173868,1781555435000,-500.0,8.493e-05,2]
[425173870,1781555435000,-194493.08889584,8.676e-05,2]
[425173872,1781555435000,-70977.98683453,8.676e-05,2]
[425173869,1781555435000,-172.03932721,8.633e-05,2]
[425173867,1781555435000,-215.0,8.413e-05,2]
[425173866,1781555435000,-150.0,8.331e-05,2]
[425173835,1781555435000,-500.0,8.147e-05,2]
[425173864,1781555435000,-49349.72000763,8.254e-05,2]
[425173855,1781555435000,-500.0,8.147e-05,2]
[425173865,1781555435000,-2401.44,8.254e-05,2]
[425173854,1781555435000,-500.0,8.147e-05,2]
[425173853,1781555435000,-500.0,8.147e-05,2]
[425173837,1781555435000,-522.29287822,8.147e-05,2]
[425173839,1781555435000,-500.0,8.147e-05,2]
[425173840,1781555435000,-500.0,8.147e-05,2]
[425173842,1781555435000,-500.0,8.147e-05,2]
[425173848,1781555435000,-500.0,8.147e-05,2]
[425173846,1781555435000,-500.0,8.147e-05,2]
[425173873,1781555435000,-68880.90585224,8.676e-05,2]
[425173841,1781555435000,-500.0,8.147e-05,2]
[425173845,1781555435000,-500.0,8.147e-05,2]
[425173843,1781555435000,-500.0,8.147e-05,2]
[425173851,1781555435000,-500.0,8.147e-05,2]
[425173847,1781555435000,-500.0,8.147e-05,2]
[425173844,1781555435000,-500.0,8.147e-05,2]
[425173849,1781555435000,-500.0,8.147e-05,2]
[425173852,1781555435000,-500.0,8.147e-05,2]
[425173850,1781555435000,-500.0,8.147e-05,2]
[425173897,1781555438000,-722.01490158,8.875e-05,2]
[425173901,1781555438000,-300.0,8.962e-05,2]
[425173900,1781555438000,-255.0,8.961e-05,2]
[425173896,1781555438000,-23811.0,8.849e-05,2]
[425173904,1781555438000,-500.0,8.963e-05,2]
[425173903,1781555438000,-250.0,8.963e-05,2]
[425173905,1781555438000,-500.0,9.041e-05,2]
[425173895,1781555438000,-14656.0,8.849e-05,2]
[425173898,1781555438000,-4429.60000649,8.876e-05,2]
[425173893,1781555438000,-8581.9645,8.776e-05,2]
[425173885,1781555438000,-1162183.13017182,8.676e-05,2]
[425173894,1781555438000,-169.91674799,8.832e-05,2]
[425173892,1781555438000,-2500.0,8.776e-05,2]
[425173891,1781555438000,-42600.9597,8.776e-05,2]
[425173890,1781555438000,-33290.518,8.776e-05,2]
[425173889,1781555438000,-5871.19913141,8.771e-05,2]
[425173888,1781555438000,-1248.66658046,8.771e-05,2]
[425173887,1781555438000,-500.0,8.767e-05,2]
[425173886,1781555438000,-2500000.0,8.676e-05,2]
[425173908,1781555438000,-2000.0,9.247e-05,2]
[425173902,1781555438000,-250.0,8.962e-05,2]
[425173906,1781555438000,-160.0,9.051e-05,2]
[425173899,1781555438000,-1408.0,8.912e-05,2]
[425173912,1781555438000,-192.0,9.486e-05,2]
[425173907,1781555438000,-2841.53,9.171e-05,2]
[425173928,1781555438000,-180.17,9.773e-05,2]
[425173931,1781555438000,-1408.0,9.902e-05,2]
[425173925,1781555438000,-1199.07,9.67e-05,2]
[425173930,1781555438000,-433.0,9.857e-05,2]
[425173927,1781555438000,-166.68,9.743e-05,2]
[425173929,1781555438000,-163.68,9.815e-05,2]
[425173919,1781555438000,-5428.52,9.67e-05,2]
[425173920,1781555438000,-999.99,9.67e-05,2]
[425173921,1781555438000,-2788.54,9.67e-05,2]
[425173917,1781555438000,-9999.99,9.67e-05,2]
[425173926,1781555438000,-7962.73,9.67e-05,2]
[425173914,1781555438000,-4999.99,9.67e-05,2]
[425173922,1781555438000,-9999.99,9.67e-05,2]
[425173916,1781555438000,-499.99,9.67e-05,2]
[425173923,1781555438000,-799.76,9.67e-05,2]
[425173924,1781555438000,-150.99,9.67e-05,2]
[425173915,1781555438000,-299.99,9.67e-05,2]
[425173913,1781555438000,-500.0,9.493e-05,2]
[425173911,1781555438000,-258.18,9.327e-05,2]
[425173918,1781555438000,-9999.99,9.67e-05,2]
[425173910,1781555438000,-1005.04,9.31e-05,2]
[425173909,1781555438000,-163.68,9.303e-05,2]
[425173968,1781555439000,-166.66,0.00011068,2]
[425173972,1781555439000,-1044.17793931,0.00011099,2]
[425173971,1781555439000,-1044.17793931,0.00011099,2]
[425173969,1781555439000,-1044.17793936,0.00011099,2]
[425173966,1781555439000,-500.0,0.00010986,2]
[425173963,1781555439000,-150.0,0.00010959,2]
[425173964,1781555439000,-150.0,0.00010959,2]
[425173974,1781555439000,-6839.12311351,0.00011099,2]
[425173970,1781555439000,-1044.17793931,0.00011099,2]
[425173965,1781555439000,-166.66,0.00010959,2]
[425173973,1781555439000,-151.0,0.00011099,2]
[425173976,1781555439000,-6839.12311347,0.00011099,2]
[425173985,1781555439000,-6839.12311347,0.00011439,2]
[425173980,1781555439000,-2000.0,0.00011301,2]
[425173982,1781555439000,-4830.74576003,0.00011338,2]
[425173981,1781555439000,-500.0,0.00011315,2]
[425173977,1781555439000,-6839.12311347,0.00011099,2]
[425173984,1781555439000,-180.17,0.00011402,2]
[425173978,1781555439000,-166.66,0.00011178,2]
[425173986,1781555439000,-1044.17793931,0.00011439,2]
[425173983,1781555439000,-166.66,0.00011397,2]
[425173975,1781555439000,-6839.12311347,0.00011099,2]
[425173962,1781555439000,-1408.0,0.00010892,2]
[425173987,1781555439000,-166.66,0.00011507,2]
[425173998,1781555439000,-20000.0,0.000123,2]
[425173997,1781555439000,-1044.17793931,0.00012132,2]
[425173979,1781555439000,-166.66,0.00011288,2]
[425173961,1781555439000,-500.0,0.00010877,2]
[425173951,1781555439000,-163.68,0.00010327,2]
[425173957,1781555439000,-4000.0,0.00010779,2]
[425173989,1781555439000,-574.13828404,0.00011738,2]
[425173937,1781555439000,-360.94409,0.0001,2]
[425173936,1781555439000,-360.9441,0.0001,2]
[425173932,1781555439000,-1037.63455188,0.0001,2]
[425173933,1781555439000,-2738.33399939,0.0001,2]
[425173934,1781555439000,-360.94409,0.0001,2]
[425173935,1781555439000,-360.9441,0.0001,2]
[425173938,1781555439000,-360.94409,0.0001,2]
[425173940,1781555439000,-574.13828404,0.0001,2]
[425173941,1781555439000,-4000.0,0.00010027,2]
[425173939,1781555439000,-360.9441,0.0001,2]
[425173947,1781555439000,-169.0,0.00010202,2]
[425173943,1781555439000,-169.0,0.00010202,2]
[425173942,1781555439000,-250.0,0.00010162,2]
[425173945,1781555439000,-169.0,0.00010202,2]
[425173949,1781555439000,-2000.0,0.00010274,2]
[425173948,1781555439000,-169.0,0.00010202,2]
[425173944,1781555439000,-169.0,0.00010202,2]
[425173946,1781555439000,-169.0,0.00010202,2]
[425173958,1781555439000,-615.06679498,0.00010811,2]
[425173959,1781555439000,-163.68,0.00010839,2]
[425173952,1781555439000,-169.0,0.00010327,2]
[425173950,1781555439000,-4000.0,0.00010278,2]
[425173954,1781555439000,-500.0,0.00010466,2]
[425173955,1781555439000,-4000.0,0.00010529,2]
[425173960,1781555439000,-736.0,0.00010843,2]
[425173953,1781555439000,-169.0,0.00010327,2]
[425173956,1781555439000,-192.0,0.00010672,2]
[425173996,1781555439000,-6839.12311347,0.00012132,2]
[425173967,1781555439000,-4000.0,0.0001103,2]
[425173988,1781555439000,-2401.44,0.00011556,2]
[425174032,1781555439000,-5625.24,0.00013698,2]
[425174025,1781555439000,-188.621028,0.00013424,2]
[425174026,1781555439000,-6839.12311347,0.00013516,2]
[425174029,1781555439000,-500.0,0.00013698,2]
[425174033,1781555439000,-5625.24,0.00013698,2]
[425174027,1781555439000,-1044.17793931,0.00013516,2]
[425174034,1781555439000,-5625.24,0.00013698,2]
[425174031,1781555439000,-500.0,0.00013698,2]
[425174030,1781555439000,-481.27395787,0.00013698,2]
[425174036,1781555439000,-5625.24,0.00013698,2]
[425174044,1781555439000,-500.0,0.00013698,2]
[425174046,1781555439000,-175.48841973,0.00013698,2]
[425174035,1781555439000,-5625.24,0.00013698,2]